[Event "Marienbad B1-IM 2024"]
[Site "Marianske Lazne"]
[Date "2024.01.17"]
[Round "6.12"]
[White "Zdybel, Przemyslaw"]
[Black "Hak, David"]
[Result "1-0"]
[ECO "E42"]
[WhiteElo "2180"]
[BlackElo "2310"]
[Annotator "TA"]
[PlyCount "111"]
[EventDate "2024.01.10"]
[EventType "tourn"]
[EventCountry "CZE"]
[SourceTitle "playchess.com"]
[Source "ChessBase"]
[SourceQuality "1"]
[TimeControl "40/5400+30:1800+30"]

{[%evp 18,111,16,5,3,0,0,0,75,67,108,112,104,107,109,135,100,83,99,53,63,71,95,88,84,85,96,94,76,0,0,0,272,239,313,318,516,526,725,725,682,622,614,608,577,556,541,551,685,664,663,643,885,882,925,941,923,826,1049,904,1908,1735,1001,1009,942,908,1027,1016,1235,1055,1522,1469,1346,1172,2011,1909,2852,3821,2802,2678,1885,906,29975,29969,6201,5422,5425,5626,6690,6786,5443,5416,4710,4212,1229,1119]} 1. d4 {[%emt 0:00:03]} Nf6 {[%emt 0:00:08]} 2. c4 {[%emt 0:00:09]} e6 {[%emt 0:00:32]} 3. Nc3 {[%emt 0:00:06]} Bb4 {[%emt 0:00:06]} 4. e3 {[%emt 0:00:04]} c5 {[%emt 0:00:15]} 5. Nge2 {[%emt 0:00:15]} cxd4 {[%emt 0:03:28]} 6. exd4 {[%emt 0:00:06]} O-O {[%emt 0:02:04]} 7. a3 {[%emt 0:00:50]} Be7 {[%emt 0:00:28]} 8. d5 {[%emt 0:00:34]} exd5 {[%emt 0:06:41]} 9. cxd5 {[%emt 0:02:13]} Bc5 {[%emt 0:09:36]} 10. b4 {[%emt 0:01:14] 10.b4 is better than 10.Na4.} Bb6 {[%emt 0:02:43] White must now prevent ...Ng4. E42: Nimzo-Indian: Rubinstein: 4...c5 5 Ne2.} 11. Ng3 {[%emt 0:01:16]} Re8+ {[%emt 0:05:03]} 12. Be2 {[%emt 0:00:33]} Ng4 {[%emt 0:02:40] [#]} (12... d6 $11) 13. Nge4 $1 $16 {[%emt 0:30:20] [#]} Nxf2 $146 {[%emt 0:20:47][%mdl 64] Decoy} ({Predecessor:} 13... d6 14. Bxg4 f5 15. O-O fxe4 16. Bxc8 Qxc8 17. Nb5 Qd7 18. Nd4 Na6 19. Ne6 Nc7 20. Nxc7 Qxc7 {0-1 Chiku Ratte,O (2086)-Sambuev,B (2555) Montreal Pere Noel op 2010 (2)}) 14. Nxf2 {[%emt 0:00:22]} Qf6 {[%emt 0:01:04][%csl LRc3,LRf2]} 15. Nfe4 {[%emt 0:07:32]} Rxe4 {[%emt 0:00:19]} 16. Nxe4 {[%emt 0:00:23]} Qxa1 {[%emt 0:00:13] Black is weak on the light squares} 17. Qc2 {[%emt 0:26:14]} Na6 {[%emt 0:00:25] [#]} 18. Qb2 {[%emt 0:03:47]} (18. d6 $1 $16 {aiming for Ng5.} Be3 19. Nd2) 18... Qxb2 {[%emt 0:21:51]} 19. Bxb2 {[%emt 0:00:02] d6 would be deadly.} Nc7 {[%emt 0:00:18]} 20. Bc4 {[%emt 0:03:56]} d6 {[%emt 0:01:24] Prevents Be5} 21. Nxd6 {[%emt 0:01:32]} Bg4 {[%emt 0:00:29]} 22. Rf1 {[%emt 0:02:32]} ({Much weaker is} 22. Nxb7 Nxd5 23. Bxd5 Re8+ 24. Kd2 Re2+ 25. Kc1 Bf5 26. Bxf7+ Kxf7 27. Nd6+ Kg6 28. Nxf5 Kxf5 $11) 22... Bh5 {[%emt 0:05:44]} 23. Nxb7 {[%emt 0:02:26] White is much more active.} (23. Be5 $16) 23... Re8+ $11 {[%emt 0:08:14]} 24. Kd2 {[%emt 0:00:06] And now d6 would win.} Be3+ $2 {[%emt 0:02:00][%mdl 8192] White leaves nothing to chance now.} (24... Nxd5 $1 $11 {and Black stays safe.} 25. Bxd5 Re2+ 26. Kc3 Re3+ 27. Kd2 Re2+ 28. Kc3 Re3+ 29. Kd2 Re2+) 25. Kc2 {[%emt 0:03:51] Strongly threatening d6.} Bg6+ {[%emt 0:00:42]} 26. Kb3 {[%emt 0:01:08]} Rb8 $2 {[%emt 0:03:19]} (26... Bb6 27. d6 Re3+ 28. Ka2 Ne6) 27. Na5 $18 {[%emt 0:01:06]} Rd8 {[%emt 0:01:59]} 28. Nc6 {[%emt 0:00:56]} Rd7 {[%emt 0:00:28]} 29. Ne5 {[%emt 0:01:09]} Rd6 {[%emt 0:00:15]} 30. Nxg6 {[%emt 0:00:41]} hxg6 {[%emt 0:00:01]} 31. Re1 {[%emt 0:03:37]} Bb6 {[%emt 0:00:43]} 32. a4 {[%emt 0:00:48]} Bf2 {[%emt 0:00:54]} 33. Re2 {[%emt 0:01:27]} Bh4 {[%emt 0:00:11]} 34. Be5 {[%emt 0:02:18] This pair of bishops is nice.} Rd7 {[%emt 0:00:01]} 35. d6 {[%emt 0:00:34]} Ne6 {[%emt 0:00:52]} 36. Bxe6 {[%emt 0:00:28]} fxe6 {[%emt 0:00:01][%mdl 4096] Endgame KRB-KRB} 37. Rc2 {[%emt 0:02:18]} Bd8 {[%emt 0:01:09]} 38. b5 {[%emt 0:00:24]} Kf7 {[%emt 0:00:22]} 39. Kb4 {[%emt 0:00:42]} Ke8 {[%emt 0:01:09]} 40. a5 {[%emt 0:01:36][%cal Oc2c7]} Rf7 {[%emt 0:00:18] Prevents Rc7.} 41. Rc6 {[%emt 0:13:24]} Rf5 {[%emt 0:01:47]} 42. Bg3 {[%emt 0:04:50]} (42. Bxg7 Rf4+ 43. Rc4 Bxa5+ 44. Kb3 Rf5 $14) 42... Rf1 {[%emt 0:02:16]} 43. Ra6 {[%emt 0:00:46]} Rb1+ {[%emt 0:00:39]} 44. Kc4 {[%emt 0:00:44]} Rc1+ {[%emt 0:00:02]} 45. Kd3 {[%emt 0:01:05]} Rd1+ {[%emt 0:00:07]} 46. Ke4 {[%emt 0:00:43]} Rd5 {[%emt 0:01:00]} 47. Rxa7 {[%emt 0:00:24] Threatens to win with b6.} Rxb5 {[%emt 0:00:12]} 48. a6 {[%emt 0:00:55][%cal Oa7b7] Hoping for Rb7!} ({Not} 48. Rxg7 Rxa5 49. Rxg6 Kf7 $18) 48... Ra5 {[%emt 0:00:51]} 49. Bf2 {[%emt 0:04:30]} (49. Rb7 $142 Rxa6 50. Ke5 (50. Rxg7 Bf6 $18)) 49... Ra2 {[%emt 0:00:35]} 50. d7+ {[%emt 0:01:32]} Kf7 {[%emt 0:00:35]} 51. Bc5 {[%emt 0:00:12] Threatening mate with Ra8. White is clearly winning.} Ra4+ {[%emt 0:01:30]} 52. Kd3 {[%emt 0:01:27]} Ra1 {[%emt 0:00:14]} 53. Ra8 {[%emt 0:02:11]} Rd1+ {[%emt 0:01:28]} 54. Kc4 {[%emt 0:00:11]} Rxd7 {[%emt 0:01:34]} 55. a7 {[%emt 0:00:13] Intending Rc8 and mate.} Be7 {[%emt 0:00:30]} 56. Rc8 {[%emt 0:00:46] Weighted Error Value: White=0.15 (very precise) /Black=0.59} 1-0

[Event "Marienbad B1-IM 2024"]
[Site "Marianske Lazne"]
[Date "2024.01.17"]
[Round "6.13"]
[White "Ashwath, R.."]
[Black "Dobrowolski, Piotr"]
[Result "1/2-1/2"]
[ECO "A05"]
[WhiteElo "2284"]
[BlackElo "2401"]
[Annotator "TA"]
[PlyCount "32"]
[EventDate "2024.01.10"]
[EventType "tourn"]
[EventCountry "CZE"]
[SourceTitle "playchess.com"]
[Source "ChessBase"]
[SourceQuality "1"]
[TimeControl "40/5400+30:1800+30"]

{[%evp 15,19,17,39,24,33,36]} 1. Nf3 {[%emt 0:00:44]} Nf6 {[%emt 0:00:43]} 2. c4 {[%emt 0:00:33]} g6 {[%emt 0:00:23]} 3. b3 {[%emt 0:00:14]} Bg7 {[%emt 0:00:54]} 4. Bb2 {[%emt 0:00:05]} O-O {[%emt 0:00:36]} 5. g3 {[%emt 0:00:20]} c6 {[%emt 0:01:16]} 6. Bg2 {[%emt 0:00:18]} d5 {[%emt 0:00:17]} 7. O-O {[%emt 0:00:41]} a5 {[%emt 0:01:37]} 8. d3 {[%emt 0:01:46]} Na6 {[%emt 0:02:36] 8...Bg4 is a critical line.} 9. cxd5 {[%emt 0:07:28] A11: English Opening: 1...c6.} cxd5 {[%emt 0:03:58]} 10. Nc3 {[%emt 0:02:16] [#]} {Predecessor:} Nb4 $146 11. a3 Nc6 12. Rc1 e5 13. Nb5 Qe7 14. a4 Rd8 15. Ba3 Nb4 16. Rc7 Rd7 {1-0 Andreikin,D (2729)-Postlmayer,J (2347) Titled Tuesday intern op 16th May Early blitz 2023 (1)} 1/2-1/2

[Event "Marienbad B1-IM 2024"]
[Site "Marianske Lazne"]
[Date "2024.01.17"]
[Round "6.14"]
[White "Rasmussen, Casper"]
[Black "Lima, Stefan Moisei VIeira"]
[Result "1-0"]
[ECO "A06"]
[WhiteElo "2265"]
[BlackElo "2173"]
[Annotator "TA"]
[PlyCount "97"]
[EventDate "2024.01.10"]
[EventType "tourn"]
[EventCountry "CZE"]
[SourceTitle "playchess.com"]
[Source "ChessBase"]
[SourceQuality "1"]
[TimeControl "40/5400+30:1800+30"]

{[%evp 9,97,28,30,0,0,0,0,2,2,0,16,0,0,0,0,0,0,0,0,-22,0,0,13,6,8,0,114,111,148,177,158,160,135,147,162,174,150,8,243,175,165,111,112,95,119,107,121,93,154,186,181,167,156,132,135,146,117,139,141,137,129,126,135,122,119,126,156,137,194,199,271,260,255,267,459,459,921,474,427,0,946,713,955,937,942,917,1283,1264,1337,1242]} 1. Nf3 {[%emt 0:00:06]} d5 {[%emt 0:00:11]} 2. d4 {[%emt 0:00:20]} e6 {[%emt 0:00:07][%cal Be7e6,Be6d5][%mdl 32]} 3. c4 {[%emt 0:01:10]} a6 {[%emt 0:00:09]} 4. cxd5 {[%emt 0:01:18]} exd5 {[%emt 0:00:10]} 5. Nc3 {[%emt 0:00:11]} c6 {[%emt 0:02:19]} 6. h3 {[%emt 0:01:03]} Bd6 {[%emt 0:02:01]} 7. Bg5 {[%emt 0:01:02]} Ne7 {[%emt 0:08:03]} 8. e4 {[%emt 0:02:24] The position is equal.} dxe4 {[%emt 0:01:11]} 9. Nxe4 {[%emt 0:00:03]} h6 {[%emt 0:01:50]} 10. Nxd6+ {[%emt 0:07:44]} Qxd6 {[%emt 0:00:01]} 11. Bd2 {[%emt 0:00:27]} O-O {[%emt 0:00:33]} 12. Be2 {[%emt 0:01:24]} Be6 {[%emt 0:05:34]} 13. O-O {[%emt 0:00:22]} Nd7 {[%emt 0:00:11][%cal Bb8d7,Bd7e5,Be5g6,Bg6f4][%mdl 32]} 14. a3 {[%emt 0:02:47]} Nd5 {[%emt 0:02:07] Wards off Bb4} 15. Re1 {[%emt 0:01:20][%cal Bf1e1,Be1e4,Be4e8][%mdl 32]} Bf5 {[%emt 0:16:17]} 16. Bf1 {[%emt 0:03:29]} Rfe8 {[%emt 0:00:44]} 17. Qb3 {[%emt 0:00:34]} Be4 {[%emt 0:04:37]} (17... Qc7 $11) 18. Ne5 $1 $16 {[%emt 0:07:19]} (18. Qxb7 $6 Reb8 $11) 18... Nxe5 {[%emt 0:13:12]} 19. Rxe4 {[%emt 0:00:27]} Ng6 {[%emt 0:00:44]} 20. Rxe8+ {[%emt 0:04:12]} (20. Qxb7 $2 Reb8 $19) 20... Rxe8 {[%emt 0:00:01]} 21. Qxb7 {[%emt 0:00:26]} Rb8 {[%emt 0:00:39]} 22. Qxa6 {[%emt 0:01:11]} Rxb2 {[%emt 0:00:19]} 23. Bc1 {[%emt 0:02:06]} (23. Be1 $16) 23... Rb8 $2 {[%emt 0:00:50]} (23... Rxf2 $1 $11 {and Black has nothing to worry.} 24. Kxf2 Qf6+ 25. Kg1 (25. Kg3 Qd6+ 26. Kf2 Qf6+ 27. Kg1 Qxd4+ 28. Kh1 Qxa1 $16) (25. Ke2 Qxd4 26. Qa8+ Kh7 $11) 25... Qxd4+ 26. Kh1 Qxa1 27. Qxc6 Nc3 28. Qe8+ Nf8) 24. Qd3 {[%emt 0:05:03]} Ngf4 {[%emt 0:00:21]} 25. Qe4 {[%emt 0:03:10]} (25. Qc4 $18) 25... Ne6 {[%emt 0:01:05]} 26. Qe5 {[%emt 0:07:48]} Qd8 {[%emt 0:00:06]} 27. Bc4 {[%emt 0:02:01]} Ra8 {[%emt 0:02:46]} 28. Be3 {[%emt 0:03:52]} Ra5 {[%emt 0:04:11]} ({Black should play} 28... Qb6) 29. Bd2 {[%emt 0:04:15] This pair of bishops is nice.} Ra4 {[%emt 0:02:36] [#]} 30. Rb1 $1 {[%emt 0:00:01][%cal Ba1b1,Bb1b8,Bb8e8][%mdl 32] Hoping for Rb8.} Qf6 {[%emt 0:07:50]} (30... Rxc4 $2 31. Rb8 $18) 31. Qxf6 {[%emt 0:10:46]} (31. Bxd5 Qxe5 32. dxe5 cxd5 $16) 31... Nxf6 {[%emt 0:00:48]} 32. Rb8+ {[%emt 0:00:33]} Kh7 {[%emt 0:00:20]} 33. Bxe6 {[%emt 0:00:55]} fxe6 {[%emt 0:00:14][%mdl 4096] Endgame. KRB-KRN} 34. Bb4 {[%emt 0:00:13]} Nd5 {[%emt 0:05:38]} 35. Bc5 {[%emt 0:00:52]} Rc4 {[%emt 0:00:02][%cal Oe6e5] [#]} 36. Re8 $1 {[%emt 0:01:22]} Nf4 {[%emt 0:00:01]} 37. Kh2 {[%emt 0:01:49]} Rc2 {[%emt 0:04:58]} 38. Kg3 {[%emt 0:06:57]} g5 {[%emt 0:07:43]} (38... Nd3 $16 39. a4 (39. Rxe6 Nxc5 40. dxc5 Rc3+ 41. Re3 Rxc5 $16) 39... e5) 39. Kf3 $18 {[%emt 0:10:16]} Nd3 {[%emt 0:03:57]} (39... Rc4 $142 40. Ke4 Rc2) 40. Re7+ {[%emt 0:02:14]} ({Don't take} 40. Rxe6 $6 Nxc5 41. dxc5 Rxc5 $16) 40... Kg8 {[%emt 0:00:23]} 41. Rxe6 {[%emt 0:32:13]} Kh7 $2 {[%emt 0:35:36]} (41... Nxc5 {was necessary.} 42. dxc5 Rxc5 43. Rxh6 Kg7) 42. Rxc6 {[%emt 0:02:31]} Nxf2 {[%emt 0:00:09]} (42... Kg7 $142 43. Ke3 (43. Bf8+ Kxf8 44. Rxc2 Ne1+ 45. Ke4 Nxc2 $16) 43... Nxc5 44. Rxc5 Rb2) 43. Rc7+ {[%emt 0:02:05]} Kg6 {[%emt 0:00:23]} 44. Rc6+ {[%emt 0:00:06]} (44. Bb6 $142 Rb2 45. Rc6+ Kf7 46. Rxh6) 44... Kh7 $1 {[%emt 0:00:10]} 45. a4 {[%emt 0:00:00][%cal Ba3a4,Ba4a5,Ba5a6,Ba6a7][%mdl 32] White is clearly winning.} Nd3 {[%emt 0:00:00]} 46. a5 {[%emt 0:00:00]} Ra2 {[%emt 0:00:00]} 47. a6 {[%emt 0:00:00]} Kg7 {[%emt 0:00:00]} 48. a7 {[%emt 0:00:00]} Nxc5 {[%emt 0:00:00]} 49. Rc7+ {[%emt 0:00:00] Weighted Error Value: White=0.31/Black=0.28 (precise) .  Loses game:     	---       	Black=1      Mistake:       	White=2     	Black=6      Inaccurate:     	White=1     	Black=2      OK:         	White=18    	Black=13     Best:        	White=2     	Black=5      Strong:       	White=3     	Black=1} ({Less strong is} 49. Rxc5 Rxa7 50. Rc2 Kf6 $18) 1-0

[Event "Marienbad B1-IM 2024"]
[Site "Marianske Lazne"]
[Date "2024.01.17"]
[Round "6.15"]
[White "Ochedzan, Tymon"]
[Black "Ni, Viktorija"]
[Result "0-1"]
[ECO "B30"]
[WhiteElo "2166"]
[BlackElo "2138"]
[Annotator "NA RC"]
[PlyCount "108"]
[EventDate "2024.01.10"]
[EventType "tourn"]
[EventCountry "CZE"]
[SourceTitle "playchess.com"]
[Source "ChessBase"]
[SourceQuality "1"]
[TimeControl "40/5400+30:1800+30"]

1. e4 {[%emt 0:00:02]} c5 {[%emt 0:04:41]} 2. Nf3 {[%emt 0:00:06]} Nc6 {[%emt 0:00:09]} 3. Bb5 {[%emt 0:01:29]} e6 {[%emt 0:00:15]} 4. O-O {[%emt 0:01:22]} Nge7 {[%emt 0:00:20]} 5. Re1 {[%emt 0:02:14]} a6 {[%emt 0:07:14]} 6. Bf1 {[%emt 0:02:17]} Ng6 {[%emt 0:02:16]} 7. d4 {[%emt 0:09:37]} cxd4 {[%emt 0:02:46]} 8. Nxd4 {[%emt 0:00:16]} Qc7 {[%emt 0:02:34]} 9. Nxc6 {[%emt 0:03:11]} dxc6 {[%emt 0:06:48]} 10. Be3 {[%emt 0:03:22]} Bd6 {[%emt 0:03:10]} 11. g3 {[%emt 0:01:41]} Be5 {[%emt 0:09:26]} 12. Nd2 {[%emt 0:03:37]} b5 {[%emt 0:02:31]} 13. c4 {[%emt 0:06:30]} O-O {[%emt 0:04:31]} 14. Qc2 {[%emt 0:02:31]} Rd8 {[%emt 0:19:16]} 15. Nb3 {[%emt 0:05:23]} Bd6 {[%emt 0:07:54]} 16. f4 {[%emt 0:03:32]} e5 {[%emt 0:01:41]} 17. f5 {[%emt 0:01:30]} Nf8 {[%emt 0:00:21]} 18. Rac1 {[%emt 0:04:56]} b4 {[%emt 0:02:43]} 19. Qf2 {[%emt 0:04:45]} Nd7 {[%emt 0:01:27]} 20. c5 {[%emt 0:01:07]} Be7 {[%emt 0:00:27]} 21. g4 {[%emt 0:00:48]} a5 {[%emt 0:04:23]} 22. Nd2 {[%emt 0:03:08]} Qa7 {[%emt 0:00:23]} 23. g5 {[%emt 0:03:08]} Ba6 {[%emt 0:02:27]} 24. Red1 {[%emt 0:06:50]} Bxf1 {[%emt 0:00:44]} 25. Nxf1 {[%emt 0:00:16]} f6 {[%emt 0:02:56]} 26. h4 {[%emt 0:01:36]} Nf8 {[%emt 0:00:47]} 27. Ng3 {[%emt 0:04:20]} Rxd1+ {[%emt 0:01:00]} 28. Rxd1 {[%emt 0:00:04]} Rd8 {[%emt 0:00:11]} 29. Rxd8 {[%emt 0:01:05]} Bxd8 {[%emt 0:00:01]} 30. gxf6 {[%emt 0:01:09]} Bxf6 {[%emt 0:00:31]} 31. Nh5 {[%emt 0:01:35]} Qf7 {[%emt 0:00:59]} 32. Nxf6+ {[%emt 0:04:57]} Qxf6 {[%emt 0:00:07]} 33. Qg3 {[%emt 0:03:00]} Nd7 {[%emt 0:00:49]} 34. Kg2 {[%emt 0:01:58]} Qf7 {[%emt 0:04:17]} 35. b3 {[%emt 0:00:55]} Qh5 {[%emt 0:00:12]} 36. Bf2 {[%emt 0:04:14]} Qe2 {[%emt 0:00:21]} 37. Qe3 {[%emt 0:02:18]} Qg4+ {[%emt 0:00:18]} 38. Kh2 {[%emt 0:02:12]} Nf6 {[%emt 0:01:09]} 39. Qd3 {[%emt 0:01:00]} h6 {[%emt 0:00:07]} 40. Qg3 {[%emt 0:04:02]} Qxe4 {[%emt 0:01:17]} 41. Kg1 {[%emt 0:31:59]} Qxf5 {[%emt 0:32:03]} 42. Be1 {[%emt 0:00:00]} Kf7 {[%emt 0:00:00]} 43. Qg2 {[%emt 0:00:00]} Qe4 {[%emt 0:00:00]} 44. Qf1 {[%emt 0:00:00]} Qg4+ {[%emt 0:00:00]} 45. Kh1 {[%emt 0:00:00]} Ke6 {[%emt 0:00:00]} 46. Qa6 {[%emt 0:00:00]} Qe4+ {[%emt 0:00:00]} 47. Kh2 {[%emt 0:00:00]} Qxe1 {[%emt 0:00:00]} 48. Qxc6+ {[%emt 0:00:00]} Kf5 {[%emt 0:00:00]} 49. Qf3+ {[%emt 0:00:00]} Kg6 {[%emt 0:00:00]} 50. h5+ {[%emt 0:00:00]} Kg5 {[%emt 0:00:00]} 51. c6 {[%emt 0:00:00]} e4 {[%emt 0:00:00]} 52. Qh3 {[%emt 0:00:00]} Ng4+ {[%emt 0:00:00]} 53. Kg2 {[%emt 0:00:00]} Qd2+ {[%emt 0:00:00]} 54. Kg1 {[%emt 0:00:00]} Qc1+ {[%emt 0:00:00]} 0-1

[Event "Marienbad B1-IM 2024"]
[Site "Marianske Lazne"]
[Date "2024.01.18"]
[Round "7.11"]
[White "Ni, Viktorija"]
[Black "Jurek, Josef"]
[Result "1/2-1/2"]
[ECO "A40"]
[WhiteElo "2138"]
[BlackElo "2242"]
[Annotator "RC"]
[PlyCount "99"]
[EventDate "2024.01.10"]
[EventType "tourn"]
[EventCountry "CZE"]
[SourceTitle "playchess.com"]
[Source "ChessBase"]
[SourceQuality "1"]
[TimeControl "40/5400+30:1800+30"]

1. d4 {[%emt 0:00:06]} e6 {[%emt 0:00:15]} 2. Nf3 {[%emt 0:00:32]} c5 {[%emt 0:00:19]} 3. g3 {[%emt 0:01:04]} cxd4 {[%emt 0:02:21]} 4. Nxd4 {[%emt 0:00:46]} d5 {[%emt 0:02:25]} 5. Bg2 {[%emt 0:00:58]} Nf6 {[%emt 0:01:01]} 6. O-O {[%emt 0:00:45]} e5 {[%emt 0:01:53]} 7. Nb3 {[%emt 0:01:45]} Be6 {[%emt 0:03:47]} 8. Nc3 {[%emt 0:08:06]} Bb4 {[%emt 0:06:14]} 9. Bg5 {[%emt 0:06:42]} Bxc3 {[%emt 0:01:24]} 10. bxc3 {[%emt 0:07:32]} Nbd7 {[%emt 0:01:36]} 11. f4 {[%emt 0:09:37]} Qb6+ {[%emt 0:11:42]} 12. Kh1 {[%emt 0:02:24]} Ne4 {[%emt 0:03:33]} 13. f5 {[%emt 0:18:00]} Nxg5 {[%emt 0:03:39]} 14. fxe6 {[%emt 0:00:24]} fxe6 {[%emt 0:03:29]} 15. Qd2 {[%emt 0:06:13]} h6 {[%emt 0:10:15]} 16. c4 {[%emt 0:05:01]} Ne4 {[%emt 0:02:06]} 17. Bxe4 {[%emt 0:05:04]} dxe4 {[%emt 0:00:18]} 18. Rad1 {[%emt 0:01:32]} O-O-O {[%emt 0:06:18]} 19. c5 {[%emt 0:02:53]} Qc6 {[%emt 0:02:40]} 20. Qa5 {[%emt 0:03:54]} Nf6 {[%emt 0:08:36]} 21. Qxa7 {[%emt 0:03:15]} Qa6 {[%emt 0:05:15]} 22. Qxa6 {[%emt 0:08:57]} bxa6 {[%emt 0:00:11]} 23. Na5 {[%emt 0:02:46]} Rd5 {[%emt 0:02:41]} 24. Rxd5 {[%emt 0:00:22]} exd5 {[%emt 0:00:13]} 25. Rb1 {[%emt 0:01:53]} Nd7 {[%emt 0:04:22]} 26. c6 {[%emt 0:01:13]} Nc5 {[%emt 0:01:36]} 27. Nb7 {[%emt 0:00:44]} Nxb7 {[%emt 0:01:53]} 28. Rxb7 {[%emt 0:00:17]} Rf8 {[%emt 0:01:29]} 29. Re7 {[%emt 0:00:31]} Rf2 {[%emt 0:04:01]} 30. Rxe5 {[%emt 0:00:47]} Rxe2 {[%emt 0:00:21]} 31. Rxd5 {[%emt 0:00:21]} Kc7 {[%emt 0:01:50]} 32. Rc5 {[%emt 0:00:38]} e3 {[%emt 0:01:16]} 33. Kg1 {[%emt 0:00:22]} Rd2 {[%emt 0:03:16]} 34. Kf1 {[%emt 0:00:47]} Rxh2 {[%emt 0:00:24]} 35. Rc3 {[%emt 0:00:54]} Rf2+ {[%emt 0:01:48]} 36. Ke1 {[%emt 0:00:40]} Rg2 {[%emt 0:00:12]} 37. Rxe3 {[%emt 0:00:39]} Kxc6 {[%emt 0:01:29]} 38. Rc3+ {[%emt 0:00:23]} Kd5 {[%emt 0:00:45]} 39. Kf1 {[%emt 0:00:18]} Rh2 {[%emt 0:00:35]} 40. Kg1 {[%emt 0:00:49]} Rd2 {[%emt 0:00:52]} 41. Rc7 {[%emt 0:06:09]} Ke4 {[%emt 0:02:26]} 42. Rxg7 {[%emt 0:02:35]} Rxc2 {[%emt 0:00:30]} 43. Rg6 {[%emt 0:01:08]} Rxa2 {[%emt 0:00:29]} 44. Rxh6 {[%emt 0:00:06]} Kf3 {[%emt 0:00:45]} 45. Rf6+ {[%emt 0:01:31]} Kxg3 {[%emt 0:00:50]} 46. Kf1 {[%emt 0:00:14]} a5 {[%emt 0:00:42]} 47. Ke1 {[%emt 0:02:17]} a4 {[%emt 0:00:15]} 48. Kd1 {[%emt 0:02:31]} a3 {[%emt 0:00:09]} 49. Kc1 {[%emt 0:00:55]} Ra1+ {[%emt 0:00:22]} 50. Kc2 {[%emt 0:00:05]} 1/2-1/2

[Event "Marienbad B1-IM 2024"]
[Site "Marianske Lazne"]
[Date "2024.01.18"]
[Round "7.12"]
[White "Lima, Stefan Moisei VIeira"]
[Black "Ochedzan, Tymon"]
[Result "1/2-1/2"]
[ECO "E10"]
[WhiteElo "2173"]
[BlackElo "2166"]
[Annotator "RC"]
[PlyCount "92"]
[EventDate "2024.01.10"]
[EventType "tourn"]
[EventCountry "CZE"]
[SourceTitle "playchess.com"]
[Source "ChessBase"]
[SourceQuality "1"]
[TimeControl "40/5400+30:1800+30"]

1. d4 {[%emt 0:00:06]} Nf6 {[%emt 0:00:04]} 2. c4 {[%emt 0:00:06]} e6 {[%emt 0:00:21]} 3. Nf3 {[%emt 0:00:43]} c5 {[%emt 0:00:08]} 4. g3 {[%emt 0:01:51]} cxd4 {[%emt 0:00:07]} 5. Nxd4 {[%emt 0:00:03]} d5 {[%emt 0:00:09]} 6. Bg2 {[%emt 0:00:08]} e5 {[%emt 0:00:17]} 7. Nf3 {[%emt 0:00:23]} d4 {[%emt 0:00:13]} 8. O-O {[%emt 0:00:09]} Nc6 {[%emt 0:00:22]} 9. e3 {[%emt 0:00:08]} Be7 {[%emt 0:00:33]} 10. exd4 {[%emt 0:00:02]} exd4 {[%emt 0:00:09]} 11. Re1 {[%emt 0:00:57]} O-O {[%emt 0:12:14]} 12. Bf4 {[%emt 0:07:40]} Be6 {[%emt 0:01:33]} 13. Nbd2 {[%emt 0:06:20]} Qb6 {[%emt 0:00:30]} 14. Qb3 {[%emt 0:08:33]} Nd7 {[%emt 0:04:49]} 15. Qb5 {[%emt 0:13:08]} Rfe8 {[%emt 0:04:30]} 16. Rad1 {[%emt 0:03:02]} Nc5 {[%emt 0:04:32]} 17. Nb3 {[%emt 0:07:58]} Nxb3 {[%emt 0:10:17]} 18. axb3 {[%emt 0:01:47]} Bc5 {[%emt 0:03:15]} 19. Ng5 {[%emt 0:17:13]} Bg4 {[%emt 0:06:09]} 20. Bd5 {[%emt 0:01:48]} Bh5 {[%emt 0:07:14]} 21. g4 {[%emt 0:03:38]} Bg6 {[%emt 0:01:45]} 22. h4 {[%emt 0:05:12]} h6 {[%emt 0:02:24]} 23. Rxe8+ {[%emt 0:05:20]} Rxe8 {[%emt 0:00:06]} 24. h5 {[%emt 0:01:04]} Bxh5 {[%emt 0:03:44]} 25. Qxb6 {[%emt 0:01:24]} Bxb6 {[%emt 0:03:26]} 26. gxh5 {[%emt 0:00:17]} hxg5 {[%emt 0:00:18]} 27. Bxg5 {[%emt 0:02:26]} Re5 {[%emt 0:02:08]} 28. Bd2 {[%emt 0:00:09]} Rxh5 {[%emt 0:02:03]} 29. Re1 {[%emt 0:01:29]} g6 {[%emt 0:05:25]} 30. b4 {[%emt 0:00:31]} Re5 {[%emt 0:02:16]} 31. Rxe5 {[%emt 0:01:41]} Nxe5 {[%emt 0:00:05]} 32. c5 {[%emt 0:00:16]} Bc7 {[%emt 0:00:27]} 33. Kf1 {[%emt 0:04:25]} b6 {[%emt 0:04:58]} 34. Ke2 {[%emt 0:02:35]} Kf8 {[%emt 0:03:33]} 35. Bf4 {[%emt 0:04:18]} Ke7 {[%emt 0:04:45]} 36. Bg3 {[%emt 0:00:36]} f5 {[%emt 0:00:51]} 37. Bh4+ {[%emt 0:00:27]} Kd7 {[%emt 0:01:05]} 38. Bf6 {[%emt 0:00:38]} d3+ {[%emt 0:04:36]} 39. Kd2 {[%emt 0:00:07]} Ng4 {[%emt 0:02:40]} 40. Bh4 {[%emt 0:00:43]} Bf4+ {[%emt 0:03:23]} 41. Kxd3 {[%emt 0:03:25]} g5 {[%emt 0:07:09]} 42. Bg3 {[%emt 0:00:20]} Be5 {[%emt 0:01:29]} 43. f3 {[%emt 0:07:38]} Bxg3 {[%emt 0:00:53]} 44. fxg4 {[%emt 0:00:09]} fxg4 {[%emt 0:00:07]} 45. cxb6 {[%emt 0:00:19]} axb6 {[%emt 0:00:10]} 46. b5 {[%emt 0:00:40]} Kd6 {[%emt 0:00:10]} 1/2-1/2